fUST/lending_fUST_20251007
["ID","MTS","AMOUNT","RATE_DAILY","PERIOD"]
[389752509,1759830645618,-304.561797,0.00019178,2]
[389752511,1759830645627,-304.561797,0.00019178,2]
[389752513,1759830645637,-304.561797,0.00019178,2]
[389752515,1759830645648,-304.561797,0.00019178,2]
[389752517,1759830645658,-304.561797,0.00019178,2]
[389752519,1759830645668,-500.0,0.00019178,2]
[389752521,1759830645678,-304.561797,0.00019178,2]
[389752523,1759830645688,-423.68081264,0.00019178,2]
[389752525,1759830645699,-151.0,0.00019178,2]
[389752527,1759830645709,-304.561797,0.00019178,2]
[389752529,1759830645719,-500.0,0.00019178,2]
[389752531,1759830645729,-175.478145,0.00019178,2]
[389752533,1759830645738,-304.561797,0.00019178,2]
[389752534,1759830645748,-500.0,0.00019178,2]
[389752536,1759830645757,-500.0,0.00019178,2]
[389752538,1759830645767,-304.561797,0.00019178,2]
[389752540,1759830645777,-304.561797,0.00019178,2]
[389752542,1759830645788,-4778.74,0.00019178,2]
[389752544,1759830645798,-304.561797,0.00019178,2]
[389752545,1759830645808,-304.561797,0.00019178,2]
[389752546,1759830645819,-580.63,0.00019178,2]
[389752547,1759830645830,-500.0,0.00019178,2]
[389752548,1759830645840,-401.60875703,0.00019178,2]
[389752549,1759830645850,-833.31,0.00019178,2]
[389752550,1759830645859,-500.0,0.00019178,2]
[389752551,1759830645870,-500.0,0.00019178,2]
[389752552,1759830645879,-500.0,0.00019178,2]
[389752553,1759830645889,-716.06,0.00019178,2]
[389752554,1759830645898,-500.0,0.00019178,2]
[389752555,1759830645908,-500.0,0.00019178,2]
[389752556,1759830645918,-624.27,0.00019178,2]
[389752557,1759830645928,-500.0,0.00019178,2]
[389752558,1759830645937,-500.0,0.00019178,2]
[389752559,1759830645947,-1489.09,0.00019178,2]
[389752560,1759830645958,-500.0,0.00019178,2]
[389752561,1759830645968,-329.2985971,0.00019178,2]
[389752562,1759830645978,-778.39,0.00019178,2]
[389752563,1759830645991,-500.0,0.00019178,2]
[389752564,1759830646001,-151.0,0.00019178,2]
[389752565,1759830646010,-500.0,0.00019178,2]
[389752566,1759830646020,-500.0,0.00019178,2]
[389752567,1759830646031,-500.0,0.00019178,2]
[389752568,1759830646040,-151.0,0.00019178,2]
[389752569,1759830646051,-151.0,0.00019178,2]
[389752570,1759830646061,-151.0,0.00019178,2]
[389752571,1759830646072,-151.0,0.00019178,2]
[389752572,1759830646082,-151.0,0.00019178,2]
[389752573,1759830646092,-151.0,0.00019178,2]
[389752574,1759830646102,-151.0,0.00019178,2]
[389752575,1759830646111,-500.0,0.00019178,2]
[389752576,1759830646123,-151.0,0.00019178,2]
[389752577,1759830646132,-500.0,0.00019178,2]
[389752578,1759830646142,-151.0,0.00019178,2]
[389752579,1759830646152,-500.0,0.00019178,2]
[389752580,1759830646162,-151.0,0.00019178,2]
[389752581,1759830646171,-151.0,0.00019178,2]
[389752582,1759830646181,-694.5,0.00019178,2]
[389752583,1759830646191,-151.0,0.00019178,2]
[389752584,1759830646201,-151.0,0.00019178,2]
[389752585,1759830646211,-151.0,0.00019178,2]
[389752586,1759830646221,-151.0,0.00019178,2]
[389752587,1759830646231,-151.0,0.00019178,2]
[389752588,1759830646240,-154.4622178,0.00019178,2]
[389752589,1759830646251,-500.0,0.00019178,2]
[389752590,1759830646261,-1766.14,0.00019178,2]
[389752591,1759830646272,-500.0,0.00019178,2]
[389752592,1759830646282,-657.85,0.00019178,2]
[389752593,1759830646291,-500.0,0.00019178,2]
[389752594,1759830646300,-657.85,0.00019178,2]
[389752595,1759830646310,-657.85,0.00019178,2]
[389752596,1759830646320,-500.0,0.00019178,2]
[389752597,1759830646330,-657.85,0.00019178,2]
[389752598,1759830646340,-657.85,0.00019178,2]
[389752599,1759830646350,-657.85,0.00019178,2]
[389752600,1759830646359,-657.85,0.00019178,2]
[389752601,1759830646369,-657.85,0.00019178,2]
[389752602,1759830646378,-500.0,0.00019178,2]
[389752603,1759830646387,-595.54,0.00019178,2]
[389752604,1759830646397,-657.85,0.00019178,2]
[389752605,1759830646405,-500.0,0.00019178,2]
[389752606,1759830646415,-657.85,0.00019178,2]
[389752607,1759830646424,-657.85,0.00019178,2]
[389752608,1759830646434,-657.85,0.00019178,2]
[389752609,1759830646443,-500.0,0.00019178,2]
[389752610,1759830646453,-657.85,0.00019178,2]
[389752611,1759830646462,-500.0,0.00019178,2]
[389752612,1759830646472,-657.85,0.00019178,2]
[389752613,1759830646483,-657.85,0.00019178,2]
[389752614,1759830646492,-657.85,0.00019178,2]
[389752615,1759830646501,-657.85,0.00019178,2]
[389752616,1759830646511,-353.6475142,0.00019178,2]
[389752617,1759830646521,-725.78,0.00019178,2]
[389752618,1759830646530,-500.0,0.00019178,2]
[389752619,1759830646540,-657.85,0.00019178,2]
[389752620,1759830646549,-657.85,0.00019178,2]
[389752621,1759830646559,-657.85,0.00019178,2]
[389752622,1759830646569,-657.85,0.00019178,2]
[389752623,1759830646579,-500.0,0.00019178,2]
[389752624,1759830646588,-500.0,0.00019178,2]
[389752625,1759830646598,-657.85,0.00019178,2]
[389752626,1759830646608,-657.85,0.00019178,2]
[389752627,1759830646618,-657.94573522,0.00019178,2]
[389752628,1759830646628,-1414.59005678,0.00019178,2]
[389752630,1759830646637,-594.7,0.00019178,2]
[389752631,1759830646647,-547.18,0.00019178,2]
[389752632,1759830646656,-810.69,0.00019178,2]
[389752633,1759830646665,-1379.62,0.00019178,2]
[389752635,1759830646674,-207.49634883,0.00019178,2]
[389752637,1759830646683,-500.0,0.00019178,2]
[389752639,1759830646693,-153.49820477,0.00019178,2]
[389752641,1759830646702,-500.0,0.00019178,2]
[389752643,1759830646711,-151.0,0.00019178,2]
[389752645,1759830646720,-500.0,0.00019178,2]
[389752647,1759830646729,-158.451989,0.00019178,2]
[389752649,1759830646739,-621.15,0.00019178,2]
[389752651,1759830646748,-575.28,0.00019178,2]
[389752653,1759830646757,-500.0,0.00019178,2]
[389752655,1759830646767,-1945.28,0.00019178,2]
[389752657,1759830646776,-2410.24,0.00019178,2]
[389752659,1759830646786,-796.91,0.00019178,2]
[389752661,1759830646795,-500.0,0.00019178,2]
[389752663,1759830646804,-937.045121,0.00019178,2]
[389752665,1759830646815,-937.045121,0.00019178,2]
[389752667,1759830646825,-937.045121,0.00019178,2]
[389752669,1759830646834,-937.045121,0.00019178,2]
[389752671,1759830646843,-500.0,0.00019178,2]
[389752673,1759830646854,-937.045121,0.00019178,2]
[389752675,1759830646864,-937.045121,0.00019178,2]
[389752677,1759830646873,-151.0,0.00019178,2]
[389752679,1759830646882,-937.045121,0.00019178,2]
[389752681,1759830646892,-151.0,0.00019178,2]
[389752683,1759830646901,-937.045121,0.00019178,2]
[389752685,1759830646911,-151.0,0.00019178,2]
[389752687,1759830646920,-500.0,0.00019178,2]
[389752689,1759830646930,-4750.34,0.00019178,2]
[389752691,1759830646939,-937.045121,0.00019178,2]
[389752693,1759830646949,-151.0,0.00019178,2]
[389752695,1759830646959,-937.045121,0.00019178,2]
[389752697,1759830646968,-937.045121,0.00019178,2]
[389752699,1759830646977,-151.0,0.00019178,2]
[389752701,1759830646990,-937.045121,0.00019178,2]
[389752703,1759830646999,-151.0,0.00019178,2]
[389752705,1759830647008,-5780.6,0.00019178,2]
[389752707,1759830647018,-151.0,0.00019178,2]
[389752709,1759830647029,-937.045121,0.00019178,2]
[389752711,1759830647038,-151.0,0.00019178,2]
[389752713,1759830647047,-937.045121,0.00019178,2]
[389752715,1759830647056,-937.045121,0.00019178,2]
[389752717,1759830647066,-500.0,0.00019178,2]
[389752719,1759830647075,-937.04513,0.00019178,2]
[389752721,1759830647085,-500.0,0.00019178,2]
[389752723,1759830647094,-946.32,0.00019178,2]
[389752725,1759830647104,-500.0,0.00019178,2]
[389752727,1759830647113,-500.0,0.00019178,2]
[389752729,1759830647122,-296.91476082,0.00019178,2]
[389752731,1759830647132,-588.52,0.00019178,2]
[389752732,1759830647142,-500.0,0.00019178,2]
[389752733,1759830647151,-1212.56,0.00019178,2]
[389752735,1759830647162,-1219.47,0.00019178,2]
[389752737,1759830647171,-571.3,0.00019178,2]
[389752739,1759830647180,-2273.47,0.00019178,2]
[389752741,1759830647191,-500.0,0.00019178,2]
[389752742,1759830647201,-500.0,0.00019178,2]
[389752743,1759830647211,-500.0,0.00019178,2]
[389752744,1759830647220,-1979.21,0.00019178,2]
[389752745,1759830647230,-500.0,0.00019178,2]
[389752746,1759830647239,-412.94753209,0.00019178,2]
[389752747,1759830647249,-500.0,0.00019178,2]
[389752748,1759830647258,-500.0,0.00019178,2]
[389752749,1759830647268,-500.0,0.00019178,2]
[389752750,1759830647277,-1972.96,0.00019178,2]
[389752751,1759830647287,-500.0,0.00019178,2]
[389752752,1759830647296,-2275.68,0.00019178,2]
[389752753,1759830647306,-500.0,0.00019178,2]
[389752754,1759830647316,-500.0,0.00019178,2]
[389752755,1759830647325,-500.0,0.00019178,2]
[389752756,1759830647334,-500.0,0.00019178,2]
[389752757,1759830647344,-2074.32,0.00019178,2]
[389752758,1759830647354,-500.0,0.00019178,2]
[389752759,1759830647363,-500.0,0.00019178,2]
[389752760,1759830647423,-500.0,0.00019178,2]
[389752761,1759830647432,-500.0,0.00019178,2]
[389752762,1759830647441,-500.0,0.00019178,2]
[389752763,1759830647450,-1067.64,0.00019178,2]
[389752764,1759830647460,-1418.61,0.00019178,2]
[389752765,1759830647469,-500.0,0.00019178,2]
[389752766,1759830647478,-482.43458131,0.00019178,2]
[389752767,1759830647488,-500.0,0.00019178,2]
[389752768,1759830647497,-500.0,0.00019178,2]
[389752769,1759830647506,-500.0,0.00019178,2]
[389752770,1759830647515,-1522.11,0.00019178,2]
[389752771,1759830647525,-500.0,0.00019178,2]
[389752772,1759830647535,-608.69,0.00019178,2]
[389752773,1759830647544,-500.0,0.00019178,2]
[389752774,1759830647553,-4715.02,0.00019178,2]
[389752775,1759830647562,-500.0,0.00019178,2]
[389752776,1759830647571,-500.0,0.00019178,2]
[389752777,1759830647580,-633.18,0.00019178,2]
[389752778,1759830647592,-500.0,0.00019178,2]
[389752779,1759830647601,-500.0,0.00019178,2]
[389752780,1759830647611,-1735.07,0.00019178,2]
[389752781,1759830647621,-500.0,0.00019178,2]
[389752782,1759830647631,-500.0,0.00019178,2]
[389752783,1759830647640,-152.298219,0.00019178,2]
[389752784,1759830647650,-500.0,0.00019178,2]
[389752785,1759830647659,-500.0,0.00019178,2]
[389752786,1759830647668,-500.0,0.00019178,2]
[389752787,1759830647677,-500.0,0.00019178,2]
[389752788,1759830647686,-5017.62,0.00019178,2]
[389752789,1759830647695,-500.0,0.00019178,2]
[389752790,1759830647704,-1901.71,0.00019178,2]
[389752791,1759830647713,-500.0,0.00019178,2]
[389752792,1759830647722,-646.49,0.00019178,2]
[389752793,1759830647732,-481.24714655,0.00019178,2]
[389752794,1759830647741,-500.0,0.00019178,2]
[389752795,1759830647751,-2952.63,0.00019178,2]
[389752796,1759830647760,-160.481312,0.00019178,2]
[389752797,1759830647769,-151.0,0.00019178,2]
[389752798,1759830647781,-151.0,0.00019178,2]
[389752799,1759830647790,-151.0,0.00019178,2]
[389752800,1759830647799,-500.0,0.00019178,2]
[389752801,1759830647808,-151.0,0.00019178,2]
[389752802,1759830647817,-500.0,0.00019178,2]
[389752803,1759830647826,-982.64,0.00019178,2]
[389752804,1759830647836,-151.0,0.00019178,2]
[389752805,1759830647845,-182.110453,0.00019178,2]
[389752806,1759830647854,-6936.34172,0.00019178,2]
[389752807,1759830647864,-755.52,0.00019178,2]
[389752808,1759830647874,-151.0,0.00019178,2]
[389752809,1759830647883,-6936.34172,0.00019178,2]
[389752810,1759830647892,-151.0,0.00019178,2]
[389752811,1759830647902,-6936.34172,0.00019178,2]
[389752812,1759830647911,-151.0,0.00019178,2]
[389752813,1759830647920,-6936.34172,0.00019178,2]
[389752814,1759830647929,-151.0,0.00019178,2]
[389752815,1759830647940,-6936.34172,0.00019178,2]
[389752816,1759830647950,-151.0,0.00019178,2]
[389752817,1759830647959,-6936.34172,0.00019178,2]
[389752818,1759830647968,-199.285958,0.00019178,2]
[389752819,1759830647976,-6936.34172,0.00019178,2]
[389752820,1759830647991,-6936.34172,0.00019178,2]
[389752821,1759830648000,-6936.34172,0.00019178,2]
[389752822,1759830648010,-6936.34172,0.00019178,2]
[389752823,1759830648019,-6936.34172,0.00019178,2]
[389752824,1759830648031,-6936.34172,0.00019178,2]
[389752825,1759830648041,-500.0,0.00019178,2]
[389752826,1759830648051,-6936.34172,0.00019178,2]
[389752827,1759830648060,-6936.34172,0.00019178,2]
[389752828,1759830648078,-6936.34172,0.00019178,2]
[389752829,1759830648088,-500.0,0.00019178,2]
[389752830,1759830648097,-6936.341726,0.00019178,2]
[389752831,1759830648107,-1663.83,0.00019178,2]
[389752832,1759830648117,-500.0,0.00019178,2]
[389752833,1759830648126,-500.0,0.00019178,2]
[389752834,1759830648136,-500.95,0.00019178,2]
[389752835,1759830648146,-500.0,0.00019178,2]
[389752836,1759830648154,-151.0,0.00019178,2]
[389752837,1759830648163,-1918.853781,0.00019178,2]
[389752838,1759830648172,-151.0,0.00019178,2]
[389752839,1759830648181,-1918.853781,0.00019178,2]
[389752840,1759830648190,-153.281682,0.00019178,2]
[389752841,1759830648199,-151.0,0.00019178,2]
[389752842,1759830648209,-1918.853781,0.00019178,2]
[389752843,1759830648218,-245.561612,0.00019178,2]
[389752844,1759830648229,-1918.853781,0.00019178,2]
[389752845,1759830648238,-1918.853781,0.00019178,2]
[389752846,1759830648248,-1918.853781,0.00019178,2]
[389752847,1759830648258,-500.0,0.00019178,2]
[389752848,1759830648266,-1918.853781,0.00019178,2]
[389752849,1759830648276,-1918.853781,0.00019178,2]
[389752850,1759830648285,-1918.853781,0.00019178,2]
[389752851,1759830648294,-1918.853781,0.00019178,2]
[389752852,1759830648303,-1918.853781,0.00019178,2]
[389752853,1759830648313,-500.0,0.00019178,2]
[389752854,1759830648323,-500.0,0.00019178,2]
[389752855,1759830648333,-500.0,0.00019178,2]
[389752856,1759830648342,-1918.853781,0.00019178,2]
[389752857,1759830648352,-1918.853781,0.00019178,2]
[389752858,1759830648362,-500.0,0.00019178,2]
[389752859,1759830648372,-1918.853781,0.00019178,2]
[389752860,1759830648382,-1918.853781,0.00019178,2]
[389752861,1759830648391,-1918.853779,0.00019178,2]
[389752862,1759830648400,-500.0,0.00019178,2]
[389752863,1759830648410,-151.0,0.00019178,2]
[389752864,1759830648419,-500.0,0.00019178,2]
[389752865,1759830648429,-151.0,0.00019178,2]
[389752866,1759830648438,-1743.84,0.00019178,2]
[389752867,1759830648447,-151.0,0.00019178,2]
[389752868,1759830648457,-236.95308,0.00019178,2]
[389752869,1759830648467,-500.0,0.00019178,2]
[389752870,1759830648476,-543.3,0.00019178,2]
[389752871,1759830648487,-13161.47,0.00019178,2]
[389752872,1759830648496,-500.0,0.00019178,2]
[389752873,1759830648505,-869.58,0.00019178,2]
[389752874,1759830648515,-500.0,0.00019178,2]
[389752875,1759830648524,-500.0,0.00019178,2]
[389752876,1759830648534,-500.0,0.00019178,2]
[389752877,1759830648544,-500.0,0.00019178,2]
[389752878,1759830648553,-500.0,0.00019178,2]
[389752879,1759830648563,-1253.64,0.00019178,2]
[389752880,1759830648571,-2728.32,0.00019178,2]
[389752881,1759830648581,-500.0,0.00019178,2]
[389752882,1759830648591,-3610.46,0.00019178,2]
[389752883,1759830648602,-647.17,0.00019178,2]
[389752884,1759830648612,-503.91416644,0.00019178,2]
[389752885,1759830648623,-500.0,0.00019178,2]
[389752886,1759830648634,-500.0,0.00019178,2]
[389752887,1759830648643,-500.0,0.00019178,2]
[389752888,1759830648652,-500.0,0.00019178,2]
[389752889,1759830648662,-500.0,0.00019178,2]
[389752890,1759830648671,-500.0,0.00019178,2]
[389752891,1759830648680,-448.73717855,0.00019178,2]
[389752892,1759830648690,-500.0,0.00019178,2]
[389752893,1759830648699,-500.0,0.00019178,2]
[389752894,1759830648709,-500.0,0.00019178,2]
[389752895,1759830648719,-500.0,0.00019178,2]
[389752896,1759830648728,-500.0,0.00019178,2]
[389752897,1759830648737,-500.0,0.00019178,2]
[389752898,1759830648747,-500.0,0.00019178,2]
[389752899,1759830648756,-733.49,0.00019178,2]
[389752900,1759830648766,-665.55,0.00019178,2]
[389752901,1759830648777,-500.0,0.00019178,2]
[389752902,1759830648786,-1195.11,0.00019178,2]
[389752903,1759830648796,-500.77501465,0.00019178,2]
[389752904,1759830648805,-873.58,0.00019178,2]
[389752905,1759830648815,-500.0,0.00019178,2]
[389752906,1759830648824,-500.0,0.00019178,2]
[389752907,1759830648833,-500.0,0.00019178,2]
[389752908,1759830648843,-500.0,0.00019178,2]
[389752909,1759830648852,-927.95,0.00019178,2]
[389752910,1759830648862,-151.0,0.00019178,2]
[389752911,1759830648872,-151.0,0.00019178,2]
[389752912,1759830648882,-500.0,0.00019178,2]
[389752913,1759830648892,-500.0,0.00019178,2]
[389752914,1759830648901,-151.0,0.00019178,2]
[389752915,1759830648911,-151.0,0.00019178,2]
[389752916,1759830648920,-3970.51,0.00019178,2]
[389752917,1759830648930,-151.0,0.00019178,2]
[389752918,1759830648939,-151.0,0.00019178,2]
[389752919,1759830648948,-500.0,0.00019178,2]
[389752920,1759830648958,-151.0,0.00019178,2]
[389752921,1759830648967,-500.0,0.00019178,2]
[389752922,1759830648977,-151.0,0.00019178,2]
[389752923,1759830648989,-151.0,0.00019178,2]
[389752924,1759830648998,-1037.12,0.00019178,2]
[389752925,1759830649008,-151.0,0.00019178,2]
[389752926,1759830649018,-1028.65,0.00019178,2]
[389752927,1759830649027,-151.0,0.00019178,2]
[389752928,1759830649036,-151.0,0.00019178,2]
[389752929,1759830649045,-500.0,0.00019178,2]
[389752930,1759830649055,-298.433677,0.00019178,2]
[389752931,1759830649064,-500.0,0.00019178,2]
[389752932,1759830649074,-500.0,0.00019178,2]
[389752933,1759830649084,-500.0,0.00019178,2]
[389752934,1759830649094,-151.0,0.00019178,2]
[389752935,1759830649104,-197.787248,0.00019178,2]
[389752936,1759830649113,-500.0,0.00019178,2]
[389752937,1759830649124,-500.0,0.00019178,2]
[389752938,1759830649133,-5459.5,0.00019178,2]
[389752939,1759830649143,-500.0,0.00019178,2]
[389752940,1759830649152,-500.0,0.00019178,2]
[389752941,1759830649161,-500.0,0.00019178,2]
[389752942,1759830649171,-500.0,0.00019178,2]
[389752943,1759830649181,-150.0,0.00019178,2]
[389752944,1759830649190,-277.0,0.000192,2]
[389752945,1759830649200,-345.0,0.0001921,2]
[389752946,1759830649211,-210.0,0.00019234,2]
[389752947,1759830649222,-3182.82762776,0.00019235,2]
[389752948,1759830649232,-2759.96343602,0.00019243,2]
[389752949,1759830649242,-0.095069,0.00019255,9]
[389752950,1759830649251,-402.02512307,0.00019288,2]
[389752951,1759830649261,-234.20938206,0.00019289,2]
[389752952,1759830649271,-160.0,0.00019289,2]
[389752953,1759830649280,-160.0,0.00019289,2]
[389752954,1759830649290,-533.72506543,0.00019289,2]
[389752955,1759830649301,-345.0,0.00019291,2]
[389752956,1759830649311,-198.0,0.00019291,2]
[389752957,1759830649320,-934.0,0.00019291,2]
[389752958,1759830649330,-191.29111129,0.00019291,2]
[389752959,1759830649340,-198.0,0.00019291,2]
[389752960,1759830649350,-151.0,0.00019291,2]
[389752961,1759830649360,-198.0,0.00019291,2]
[389752962,1759830649370,-301.60032361,0.00019292,2]
[389752963,1759830649379,-2200.737,0.000193,2]
[389752964,1759830649389,-160.0,0.00019313,3]
[389752965,1759830649399,-378.52332229,0.00019315,2]
[389752966,1759830649408,-1035.4,0.00019338,3]
[389752967,1759830649417,-633.58,0.00019338,3]
[389752968,1759830649427,-316.78,0.00019338,3]
[389752969,1759830649436,-345.0,0.00019342,2]
[389752970,1759830649446,-500.0,0.00019348,2]
[389752971,1759830649456,-2000.0,0.00019398,2]
[389752972,1759830649466,-3000.0,0.000194,2]
[389752973,1759830649475,-3000.0,0.0001941,2]
[389752974,1759830649485,-3000.0,0.0001942,2]
[389752975,1759830649494,-3000.0,0.0001943,2]
[389752976,1759830649503,-3000.0,0.0001944,2]
[389752977,1759830649512,-5658.36022712,0.00019446,2]
[389752978,1759830649522,-3000.0,0.0001945,2]
[389752979,1759830649531,-256.36985764,0.00019452,2]
[389752980,1759830649541,-500.0,0.00019452,2]
[389752981,1759830649550,-500.0,0.00019452,2]
[389752982,1759830649559,-500.0,0.00019452,2]
[389752983,1759830649569,-500.0,0.00019452,2]
[389752984,1759830649578,-500.0,0.00019452,2]
[389752985,1759830649587,-500.0,0.00019452,2]
[389752986,1759830649598,-500.0,0.00019452,2]
[389752987,1759830649608,-500.0,0.00019452,2]
[389752988,1759830649619,-500.0,0.00019452,2]
[389752989,1759830649629,-500.0,0.00019452,2]
[389752990,1759830649639,-500.0,0.00019452,2]
[389752991,1759830649648,-500.0,0.00019452,2]
[389752992,1759830649658,-500.0,0.00019452,2]
[389752993,1759830649667,-500.0,0.00019452,2]
[389752994,1759830649677,-402.47474856,0.00019452,2]
[389752995,1759830649686,-500.0,0.00019452,2]
[389752996,1759830649695,-500.0,0.00019452,2]
[389752997,1759830649705,-500.0,0.00019452,2]
[389752998,1759830649714,-500.0,0.00019452,2]
[389752999,1759830649724,-500.0,0.00019452,2]
[389753000,1759830649733,-500.0,0.00019452,2]
[389753001,1759830649743,-1003.75,0.00019452,2]
[389753002,1759830649753,-500.0,0.00019452,2]
[389753003,1759830649762,-500.0,0.00019452,2]
[389753004,1759830649771,-500.0,0.00019452,2]
[389753005,1759830649781,-500.0,0.00019452,2]
[389753006,1759830649791,-500.0,0.00019452,2]
[389753007,1759830649802,-500.0,0.00019452,2]
[389753008,1759830649811,-500.0,0.00019452,2]
[389753009,1759830649821,-500.0,0.00019452,2]
[389753010,1759830649830,-500.0,0.00019452,2]
[389753011,1759830649839,-500.0,0.00019452,2]
[389753012,1759830649848,-421.49335455,0.00019452,2]
[389753013,1759830649858,-500.0,0.00019452,2]
[389753014,1759830649868,-500.0,0.00019452,2]
[389753015,1759830649877,-500.0,0.00019452,2]
[389753016,1759830649887,-500.0,0.00019452,2]
[389753017,1759830649897,-500.0,0.00019452,2]
[389753018,1759830649907,-404.23849003,0.00019452,2]
[389753019,1759830649916,-500.0,0.00019452,2]
[389753020,1759830649926,-500.0,0.00019452,2]
[389753021,1759830649936,-500.0,0.00019452,2]
[389753022,1759830649945,-500.0,0.00019452,2]
[389753023,1759830649955,-500.0,0.00019452,2]
[389753024,1759830649965,-500.0,0.00019452,2]
[389753025,1759830649974,-500.0,0.00019452,2]
[389753026,1759830649985,-500.0,0.00019452,2]
[389753027,1759830649997,-272.01178194,0.00019452,2]
[389753028,1759830650007,-500.0,0.00019452,2]
[389753029,1759830650017,-500.0,0.00019452,2]
[389753030,1759830650028,-500.0,0.00019452,2]
[389753031,1759830650038,-500.0,0.00019452,2]
[389753032,1759830650048,-500.0,0.00019452,2]
[389753033,1759830650057,-500.0,0.00019452,2]
[389753034,1759830650069,-500.0,0.00019452,2]
[389753035,1759830650078,-500.0,0.00019452,2]
[389753036,1759830650087,-500.0,0.00019452,2]
[389753037,1759830650097,-500.0,0.00019452,2]
[389753038,1759830650107,-500.0,0.00019452,2]
[389753039,1759830650117,-1243.29,0.00019452,2]
[389753040,1759830650127,-363.39563668,0.00019452,2]
[389753041,1759830650136,-500.0,0.00019452,2]
[389753042,1759830650146,-500.0,0.00019452,2]
[389753043,1759830650156,-500.0,0.00019452,2]
[389753044,1759830650165,-500.0,0.00019452,2]
[389753045,1759830650175,-500.0,0.00019452,2]
[389753046,1759830650185,-500.0,0.00019452,2]
[389753047,1759830650195,-500.0,0.00019452,2]
[389753048,1759830650205,-500.0,0.00019452,2]
[389753049,1759830650215,-500.0,0.00019452,2]
[389753050,1759830650224,-500.0,0.00019452,2]
[389753051,1759830650234,-500.0,0.00019452,2]
[389753052,1759830650244,-500.0,0.00019452,2]
[389753053,1759830650254,-500.0,0.00019452,2]
[389753054,1759830650265,-500.0,0.00019452,2]
[389753055,1759830650275,-500.0,0.00019452,2]
[389753056,1759830650285,-500.0,0.00019452,2]
[389753057,1759830650295,-690.0,0.00019452,2]
[389753058,1759830650304,-818.11,0.00019452,2]
[389753059,1759830650314,-500.0,0.00019452,2]
[389753060,1759830650324,-500.0,0.00019452,2]
[389753061,1759830650334,-500.0,0.00019452,2]
[389753062,1759830650344,-354.54315874,0.00019452,2]
[389753063,1759830650353,-876.05,0.00019452,2]
[389753064,1759830650363,-500.0,0.00019452,2]
[389753065,1759830650373,-461.33962603,0.00019452,2]
[389753066,1759830650383,-500.0,0.00019452,2]
[389753067,1759830650393,-500.0,0.00019452,2]
[389753068,1759830650402,-500.0,0.00019452,2]
[389753069,1759830650412,-500.0,0.00019452,2]
[389753070,1759830650421,-500.0,0.00019452,2]
[389753071,1759830650431,-502.65,0.00019452,2]
[389753072,1759830650441,-500.0,0.00019452,2]
[389753073,1759830650451,-500.0,0.00019452,2]
[389753074,1759830650460,-294.35109953,0.00019452,2]
[389753075,1759830650470,-500.0,0.00019452,2]
[389753076,1759830650479,-500.0,0.00019452,2]
[389753077,1759830650488,-500.0,0.00019452,2]
[389753078,1759830650498,-500.0,0.00019452,2]
[389753079,1759830650507,-500.0,0.00019452,2]